[Event "Titled Tuesday Blitz August 15 Late 2023"]
[White "Jovic, Stanoje"]
[Black "Kaminski, Victor"]
[WhiteFideId "905020"]
[BlackFideId "1131630"]
[WhiteElo "2473"]
[BlackElo "2266"]
[Result "1-0"]
[Round "2"]
[TimeControl "180+1"]
[Date "2023.08.15"]
[WhiteClock "0:00:08"]
[BlackClock "0:00:00"]
[Board "140"]

1. c4 {[%clk 0:03:00]}  e6 {[%clk 0:02:58]} 2. g3 {[%clk 0:03:00]}  Nf6 {[%clk 0:02:58]} 3. Bg2 {[%clk 0:03:00]}  d5 {[%clk 0:02:59]} 4. Nf3 {[%clk 0:03:01]}  Be7 {[%clk 0:02:59]} 5. O-O {[%clk 0:03:01]}  O-O {[%clk 0:02:59]} 6. d4 {[%clk 0:03:01]}  dxc4 {[%clk 0:02:59]} 7. Ne5 {[%clk 0:03:01]}  c5 {[%clk 0:02:57]} 8. dxc5 {[%clk 0:02:55]}  Qc7 {[%clk 0:02:57]} 9. Nxc4 {[%clk 0:02:52]}  Bxc5 {[%clk 0:02:55]} 10. Qc2 {[%clk 0:02:26]}  Nc6 {[%clk 0:02:43]} 11. Nc3 {[%clk 0:02:20]}  Nb4 {[%clk 0:02:39]} 12. Qb3 {[%clk 0:02:13]}  a5 {[%clk 0:02:31]} 13. Bf4 {[%clk 0:02:05]}  Qe7 {[%clk 0:02:26]} 14. Na4 {[%clk 0:01:54]}  Nfd5 {[%clk 0:02:13]} 15. Nxc5 {[%clk 0:01:40]}  Nxf4 {[%clk 0:02:12]} 16. gxf4 {[%clk 0:01:40]}  Qxc5 {[%clk 0:02:11]} 17. Ne5 {[%clk 0:01:35]}  a4 {[%clk 0:02:04]} 18. Qg3 {[%clk 0:01:23]}  f6 {[%clk 0:01:49]} 19. Ng4 {[%clk 0:01:17]}  Nd5 {[%clk 0:01:17]} 20. Rac1 {[%clk 0:01:14]}  Qd6 {[%clk 0:01:15]} 21. e3 {[%clk 0:01:11]}  Nb4 {[%clk 0:01:09]} 22. Rfd1 {[%clk 0:01:07]}  Qe7 {[%clk 0:01:07]} 23. a3 {[%clk 0:01:05]}  Nd5 {[%clk 0:01:01]} 24. f5 {[%clk 0:01:04]}  Rd8 {[%clk 0:00:55]} 25. Bxd5 {[%clk 0:01:00]}  exd5 {[%clk 0:00:52]} 26. Rc7 {[%clk 0:00:56]}  Rd7 {[%clk 0:00:45]} 27. Rxd7 {[%clk 0:00:53]}  Bxd7 {[%clk 0:00:44]} 28. Qc7 {[%clk 0:00:47]}  Qe4 {[%clk 0:00:36]} 29. h3 {[%clk 0:00:31]}  Bxf5 {[%clk 0:00:25]} 30. Qxb7 {[%clk 0:00:28]}  Re8 {[%clk 0:00:15]} 31. Qxd5+ {[%clk 0:00:26]}  Qxd5 {[%clk 0:00:15]} 32. Rxd5 {[%clk 0:00:27]}  Bc2 {[%clk 0:00:05]} 33. Rc5 {[%clk 0:00:20]}  Be4 {[%clk 0:00:04]} 34. Rc4 {[%clk 0:00:16]}  Bf3 {[%clk 0:00:03]} 35. Rxa4 {[%clk 0:00:15]}  h5 {[%clk 0:00:02]} 36. Kh2 {[%clk 0:00:13]}  hxg4 {[%clk 0:00:02]} 37. hxg4 {[%clk 0:00:14]}  Be2 {[%clk 0:00:02]} 38. Kg3 {[%clk 0:00:13]}  Rb8 {[%clk 0:00:02]} 39. b4 {[%clk 0:00:13]}  Bb5 {[%clk 0:00:02]} 40. Ra7 {[%clk 0:00:12]}  Bc4 {[%clk 0:00:02]} 41. f4 {[%clk 0:00:12]}  Re8 {[%clk 0:00:01]} 42. Rc7 {[%clk 0:00:11]}  Bd5 {[%clk 0:00:01]} 43. Rc3 {[%clk 0:00:11]}  Be4 {[%clk 0:00:01]} 44. b5 {[%clk 0:00:11]}  Rb8 {[%clk 0:00:01]} 45. a4 {[%clk 0:00:11]}  Ra8 {[%clk 0:00:02]} 46. Ra3 {[%clk 0:00:11]}  Ra5 {[%clk 0:00:02]} 47. Kf2 {[%clk 0:00:10]}  Bd3 {[%clk 0:00:02]} 48. Rb3 {[%clk 0:00:08]}  Bc4 {[%clk 0:00:02]} 49. Rb4 {[%clk 0:00:08]}  Bd5 {[%clk 0:00:02]} 50. e4 {[%clk 0:00:08]}  Bb7 {[%clk 0:00:02]} 51. Ke3 {[%clk 0:00:08]}  Kf7 {[%clk 0:00:02]} 52. Kd4 {[%clk 0:00:08]}  Ke7 {[%clk 0:00:02]} 53. Kc5 {[%clk 0:00:08]}  Kd7 {[%clk 0:00:02]} 54. Kb6 {[%clk 0:00:08]}  Rxa4 {[%clk 0:00:02]} 55. Rxa4 {[%clk 0:00:08]}  Bc8 {[%clk 0:00:00]} 56. Ra7+ {[%clk 0:00:08]} 1-0


[Site "https://www.chess.com"]

[Event "Titled Tuesday Blitz August 15 Late 2023"]
[White "Bobkov, Vadim"]
[Black "Ardila, Oscar Humberto"]
[WhiteFideId "34110876"]
[BlackFideId "4404742"]
[WhiteElo "2462"]
[BlackElo "2253"]
[Result "0-1"]
[Round "2"]
[TimeControl "180+1"]
[Date "2023.08.15"]
[WhiteClock "0:00:00"]
[BlackClock "0:00:15"]
[Board "143"]

1. d4 {[%clk 0:03:00]}  Nf6 {[%clk 0:02:59]} 2. c4 {[%clk 0:02:56]}  g6 {[%clk 0:02:58]} 3. Nc3 {[%clk 0:02:55]}  Bg7 {[%clk 0:02:58]} 4. Nf3 {[%clk 0:02:55]}  d6 {[%clk 0:02:59]} 5. Bg5 {[%clk 0:02:55]}  O-O {[%clk 0:02:59]} 6. e3 {[%clk 0:02:55]}  Bg4 {[%clk 0:02:58]} 7. Be2 {[%clk 0:02:55]}  Nbd7 {[%clk 0:02:57]} 8. O-O {[%clk 0:02:54]}  e5 {[%clk 0:02:57]} 9. h3 {[%clk 0:02:52]}  Bxf3 {[%clk 0:02:56]} 10. Bxf3 {[%clk 0:02:52]}  exd4 {[%clk 0:02:57]} 11. exd4 {[%clk 0:02:52]}  c6 {[%clk 0:02:56]} 12. Re1 {[%clk 0:02:50]}  Re8 {[%clk 0:02:53]} 13. Qd2 {[%clk 0:02:42]}  Qa5 {[%clk 0:02:44]} 14. Bf4 {[%clk 0:02:37]}  d5 {[%clk 0:02:37]} 15. c5 {[%clk 0:02:16]}  b6 {[%clk 0:02:26]} 16. Rad1 {[%clk 0:02:03]}  bxc5 {[%clk 0:02:25]} 17. Nxd5 {[%clk 0:02:02]}  Qxd2 {[%clk 0:02:24]} 18. Nxf6+ {[%clk 0:02:01]}  Nxf6 {[%clk 0:02:24]} 19. Rxe8+ {[%clk 0:01:58]}  Nxe8 {[%clk 0:02:17]} 20. Rxd2 {[%clk 0:01:57]}  Bxd4 {[%clk 0:02:16]} 21. Bxc6 {[%clk 0:01:39]}  Rc8 {[%clk 0:02:16]} 22. Bb7 {[%clk 0:01:23]}  Rd8 {[%clk 0:02:15]} 23. b3 {[%clk 0:01:09]}  Nd6 {[%clk 0:02:15]} 24. Bd5 {[%clk 0:00:57]}  Kg7 {[%clk 0:02:08]} 25. Re2 {[%clk 0:00:53]}  Nf5 {[%clk 0:01:20]} 26. Bc4 {[%clk 0:00:48]}  Nd6 {[%clk 0:01:19]} 27. Bxd6 {[%clk 0:00:30]}  Rxd6 {[%clk 0:01:19]} 28. Kf1 {[%clk 0:00:27]}  Kf6 {[%clk 0:01:14]} 29. Re8 {[%clk 0:00:24]}  Rd7 {[%clk 0:01:11]} 30. a4 {[%clk 0:00:13]}  Bc3 {[%clk 0:01:10]} 31. Kg1 {[%clk 0:00:06]}  h5 {[%clk 0:01:09]} 32. g3 {[%clk 0:00:05]}  a5 {[%clk 0:01:01]} 33. Rc8 {[%clk 0:00:04]}  Bb4 {[%clk 0:00:57]} 34. Kg2 {[%clk 0:00:04]}  Re7 {[%clk 0:00:55]} 35. Rc6+ {[%clk 0:00:04]}  Kg7 {[%clk 0:00:55]} 36. Kf3 {[%clk 0:00:05]}  Ba3 {[%clk 0:00:49]} 37. Ra6 {[%clk 0:00:04]}  Bb4 {[%clk 0:00:49]} 38. Ra8 {[%clk 0:00:05]}  Bc3 {[%clk 0:00:48]} 39. Rc8 {[%clk 0:00:05]}  Bb4 {[%clk 0:00:45]} 40. Rc6 {[%clk 0:00:04]}  g5 {[%clk 0:00:39]} 41. h4 {[%clk 0:00:02]}  g4+ {[%clk 0:00:39]} 42. Kf4 {[%clk 0:00:02]}  Bd2+ {[%clk 0:00:38]} 43. Kf5 {[%clk 0:00:01]}  Be1 {[%clk 0:00:21]} 44. Rxc5 {[%clk 0:00:01]}  Bxf2 {[%clk 0:00:21]} 45. Rxa5 {[%clk 0:00:01]}  Bxg3 {[%clk 0:00:21]} 46. Kg5 {[%clk 0:00:02]}  Re5+ {[%clk 0:00:16]} 47. Rxe5 {[%clk 0:00:02]}  Bxe5 {[%clk 0:00:17]} 48. Kxh5 {[%clk 0:00:01]}  g3 {[%clk 0:00:17]} 49. Bd5 {[%clk 0:00:01]}  f5 {[%clk 0:00:14]} 50. Kg5 {[%clk 0:00:00]}  f4 {[%clk 0:00:15]} 0-1


[Site "https://www.chess.com"]

[Event "Titled Tuesday Blitz August 15 Late 2023"]
[White "Bueno, Alfeu Junior Varela"]
[Black "LuxLinster"]
[WhiteFideId "2108879"]
[WhiteElo "2459"]
[BlackElo "2251"]
[Result "0-1"]
[Round "2"]
[TimeControl "180+1"]
[Date "2023.08.15"]
[WhiteClock "0:00:05"]
[BlackClock "0:00:27"]
[Board "144"]

1. e4 {[%clk 0:02:56]}  e5 {[%clk 0:03:00]} 2. Nc3 {[%clk 0:02:56]}  Nc6 {[%clk 0:03:00]} 3. Bc4 {[%clk 0:02:56]}  Nf6 {[%clk 0:02:59]} 4. d3 {[%clk 0:02:55]}  Na5 {[%clk 0:02:57]} 5. f4 {[%clk 0:02:51]}  Nxc4 {[%clk 0:02:54]} 6. dxc4 {[%clk 0:02:52]}  exf4 {[%clk 0:02:53]} 7. Bxf4 {[%clk 0:02:50]}  Bb4 {[%clk 0:02:53]} 8. e5 {[%clk 0:02:43]}  Ne4 {[%clk 0:02:49]} 9. Qd4 {[%clk 0:02:32]}  Nxc3 {[%clk 0:02:40]} 10. bxc3 {[%clk 0:02:31]}  Be7 {[%clk 0:02:40]} 11. Nf3 {[%clk 0:02:25]}  O-O {[%clk 0:02:32]} 12. c5 {[%clk 0:02:25]}  b6 {[%clk 0:02:29]} 13. cxb6 {[%clk 0:02:18]}  axb6 {[%clk 0:02:30]} 14. Be3 {[%clk 0:02:02]}  Bb7 {[%clk 0:02:27]} 15. O-O {[%clk 0:02:00]}  Bc5 {[%clk 0:02:18]} 16. Qf4 {[%clk 0:01:57]}  Bxe3+ {[%clk 0:02:09]} 17. Qxe3 {[%clk 0:01:58]}  Qe7 {[%clk 0:02:03]} 18. Nd4 {[%clk 0:01:46]}  g6 {[%clk 0:01:57]} 19. Qg3 {[%clk 0:01:41]}  Ra5 {[%clk 0:01:46]} 20. Rae1 {[%clk 0:01:21]}  Kh8 {[%clk 0:01:40]} 21. e6 {[%clk 0:01:03]}  dxe6 {[%clk 0:01:33]} 22. Qf2 {[%clk 0:00:43]}  e5 {[%clk 0:01:27]} 23. Nb3 {[%clk 0:00:30]}  Rxa2 {[%clk 0:01:25]} 24. Re3 {[%clk 0:00:30]}  Bd5 {[%clk 0:01:20]} 25. Rfe1 {[%clk 0:00:30]}  Bxb3 {[%clk 0:01:17]} 26. Rxe5 {[%clk 0:00:31]}  Qd6 {[%clk 0:01:15]} 27. Qe3 {[%clk 0:00:16]}  Rxc2 {[%clk 0:01:10]} 28. Qh6 {[%clk 0:00:16]}  Bd5 {[%clk 0:01:05]} 29. Rxd5 {[%clk 0:00:16]}  Rxg2+ {[%clk 0:01:02]} 30. Kxg2 {[%clk 0:00:11]}  Qxd5+ {[%clk 0:01:01]} 31. Kg3 {[%clk 0:00:09]}  Rd8 {[%clk 0:00:53]} 32. Re3 {[%clk 0:00:07]}  Qd6+ {[%clk 0:00:52]} 33. Kf3 {[%clk 0:00:06]}  Qf6+ {[%clk 0:00:52]} 34. Kg3 {[%clk 0:00:06]}  Kg8 {[%clk 0:00:43]} 35. Qh3 {[%clk 0:00:05]}  Kg7 {[%clk 0:00:38]} 36. Qg4 {[%clk 0:00:04]}  Rd5 {[%clk 0:00:37]} 37. Qc4 {[%clk 0:00:03]}  Rg5+ {[%clk 0:00:36]} 38. Kh3 {[%clk 0:00:03]}  Qf5+ {[%clk 0:00:35]} 39. Kh4 {[%clk 0:00:03]}  Rh5+ {[%clk 0:00:28]} 40. Kg3 {[%clk 0:00:04]}  Rh3+ {[%clk 0:00:28]} 41. Kg2 {[%clk 0:00:04]}  Rxe3 {[%clk 0:00:28]} 42. Qd4+ {[%clk 0:00:04]}  Qe5 {[%clk 0:00:27]} 43. Qxe5+ {[%clk 0:00:05]} 0-1


[Site "https://www.chess.com"]

[Event "Titled Tuesday Blitz August 15 Late 2023"]
[White "Fernandez Hernandez, Gerardo"]
[Black "Avila Rodriguez, Joshua Ad"]
[WhiteFideId "2207400"]
[BlackFideId "5126444"]
[WhiteElo "2247"]
[BlackElo "2457"]
[Result "0-1"]
[Round "2"]
[TimeControl "180+1"]
[Date "2023.08.15"]
[WhiteClock "0:00:00"]
[BlackClock "0:00:17"]
[Board "146"]

1. e4 {[%clk 0:03:00]}  c5 {[%clk 0:02:58]} 2. Nc3 {[%clk 0:03:00]}  d6 {[%clk 0:02:58]} 3. f4 {[%clk 0:03:00]}  g6 {[%clk 0:02:58]} 4. Nf3 {[%clk 0:03:00]}  Bg7 {[%clk 0:02:58]} 5. Bc4 {[%clk 0:02:59]}  Nc6 {[%clk 0:02:58]} 6. O-O {[%clk 0:02:58]}  e6 {[%clk 0:02:58]} 7. d4 {[%clk 0:02:58]}  cxd4 {[%clk 0:02:57]} 8. Nb5 {[%clk 0:02:48]}  a6 {[%clk 0:02:43]} 9. Nbxd4 {[%clk 0:02:46]}  Nxd4 {[%clk 0:02:43]} 10. Nxd4 {[%clk 0:02:45]}  Nf6 {[%clk 0:02:44]} 11. e5 {[%clk 0:02:22]}  Ne4 {[%clk 0:02:41]} 12. Qf3 {[%clk 0:02:08]}  d5 {[%clk 0:01:58]} 13. Bb3 {[%clk 0:01:47]}  O-O {[%clk 0:01:46]} 14. Be3 {[%clk 0:01:40]}  Bd7 {[%clk 0:01:41]} 15. c4 {[%clk 0:01:31]}  Bc6 {[%clk 0:01:13]} 16. Nxc6 {[%clk 0:01:31]}  bxc6 {[%clk 0:01:12]} 17. Rad1 {[%clk 0:01:23]}  a5 {[%clk 0:00:57]} 18. Bc2 {[%clk 0:01:01]}  f5 {[%clk 0:00:46]} 19. exf6 {[%clk 0:00:54]}  Nxf6 {[%clk 0:00:45]} 20. Bc5 {[%clk 0:00:30]}  Rf7 {[%clk 0:00:40]} 21. Rfe1 {[%clk 0:00:30]}  Qd7 {[%clk 0:00:32]} 22. Qh3 {[%clk 0:00:16]}  Re8 {[%clk 0:00:25]} 23. Kh1 {[%clk 0:00:13]}  Nh5 {[%clk 0:00:20]} 24. g3 {[%clk 0:00:11]}  Bxb2 {[%clk 0:00:20]} 25. Bb3 {[%clk 0:00:05]}  Bc3 {[%clk 0:00:20]} 26. Re2 {[%clk 0:00:00]}  Nf6 {[%clk 0:00:17]} 0-1


[Site "https://www.chess.com"]

[Event "Titled Tuesday Blitz August 15 Late 2023"]
[White "tomobeast"]
[Black "Villiers, Thomas"]
[BlackFideId "427209"]
[WhiteElo "2243"]
[BlackElo "2456"]
[Result "0-1"]
[Round "2"]
[TimeControl "180+1"]
[Date "2023.08.15"]
[WhiteClock "0:01:12"]
[BlackClock "0:01:23"]
[Board "147"]

1. e4 {[%clk 0:02:53]}  e6 {[%clk 0:03:00]} 2. d4 {[%clk 0:02:52]}  b6 {[%clk 0:03:00]} 3. Nc3 {[%clk 0:02:50]}  Bb7 {[%clk 0:03:01]} 4. f4 {[%clk 0:02:50]}  Bb4 {[%clk 0:03:00]} 5. Bd3 {[%clk 0:02:50]}  Nf6 {[%clk 0:03:00]} 6. Qe2 {[%clk 0:02:48]}  d5 {[%clk 0:02:58]} 7. e5 {[%clk 0:02:48]}  Ne4 {[%clk 0:02:58]} 8. Bxe4 {[%clk 0:02:48]}  dxe4 {[%clk 0:02:59]} 9. Be3 {[%clk 0:02:49]}  Nd7 {[%clk 0:02:53]} 10. Qd2 {[%clk 0:02:48]}  f5 {[%clk 0:02:52]} 11. O-O-O {[%clk 0:02:44]}  Qe7 {[%clk 0:02:51]} 12. Nge2 {[%clk 0:02:43]}  O-O-O {[%clk 0:02:48]} 13. g4 {[%clk 0:02:43]}  g6 {[%clk 0:02:47]} 14. h4 {[%clk 0:02:41]}  c5 {[%clk 0:02:42]} 15. a3 {[%clk 0:02:36]}  cxd4 {[%clk 0:02:42]} 16. Bxd4 {[%clk 0:02:27]}  Bxa3 {[%clk 0:02:35]} 17. bxa3 {[%clk 0:02:28]}  Qxa3+ {[%clk 0:02:36]} 18. Kb1 {[%clk 0:02:28]}  Nc5 {[%clk 0:02:36]} 19. Qe3 {[%clk 0:02:24]}  Ba6 {[%clk 0:02:25]} 20. Bxc5 {[%clk 0:02:23]}  bxc5 {[%clk 0:02:20]} 21. Qc1 {[%clk 0:02:22]}  Qa5 {[%clk 0:02:06]} 22. Rxd8+ {[%clk 0:02:21]}  Rxd8 {[%clk 0:02:06]} 23. Rd1 {[%clk 0:02:21]}  Bxe2 {[%clk 0:02:02]} 24. Rxd8+ {[%clk 0:02:19]}  Kxd8 {[%clk 0:02:02]} 25. Nxe2 {[%clk 0:02:20]}  Qb5+ {[%clk 0:02:02]} 26. Qb2 {[%clk 0:02:18]}  Qxe2 {[%clk 0:01:55]} 27. Qb8+ {[%clk 0:02:19]}  Kd7 {[%clk 0:01:53]} 28. Qxa7+ {[%clk 0:02:20]}  Kc6 {[%clk 0:01:53]} 29. Qa8+ {[%clk 0:02:20]}  Kb5 {[%clk 0:01:49]} 30. Qb7+ {[%clk 0:02:19]}  Ka5 {[%clk 0:01:44]} 31. Qc7+ {[%clk 0:02:15]}  Kb4 {[%clk 0:01:39]} 32. c3+ {[%clk 0:01:37]}  Kc4 {[%clk 0:01:32]} 33. Qc6 {[%clk 0:01:12]}  Qd1+ {[%clk 0:01:30]} 34. Ka2 {[%clk 0:01:12]}  Qb3+ {[%clk 0:01:30]} 35. Ka1 {[%clk 0:01:12]}  Qxc3+ {[%clk 0:01:30]} 36. Ka2 {[%clk 0:01:13]}  Qa5+ {[%clk 0:01:29]} 37. Kb1 {[%clk 0:01:12]}  Qb5+ {[%clk 0:01:23]} 0-1


[Site "https://www.chess.com"]

[Event "Titled Tuesday Blitz August 15 Late 2023"]
[White "De Souza, Cristiano Gomes"]
[Black "Olsson, William"]
[WhiteFideId "2151758"]
[BlackFideId "1741721"]
[WhiteElo "2240"]
[BlackElo "2453"]
[Result "1-0"]
[Round "2"]
[TimeControl "180+1"]
[Date "2023.08.15"]
[WhiteClock "0:00:15"]
[BlackClock "0:00:00"]
[Board "148"]

1. d4 {[%clk 0:03:00]}  d5 {[%clk 0:02:59]} 2. c4 {[%clk 0:03:00]}  c6 {[%clk 0:02:59]} 3. Nf3 {[%clk 0:02:59]}  e6 {[%clk 0:02:59]} 4. Nc3 {[%clk 0:02:58]}  Nf6 {[%clk 0:03:00]} 5. Bg5 {[%clk 0:02:57]}  h5 {[%clk 0:03:00]} 6. e3 {[%clk 0:02:57]}  Be7 {[%clk 0:02:59]} 7. Rc1 {[%clk 0:02:55]}  Nbd7 {[%clk 0:02:59]} 8. Be2 {[%clk 0:02:54]}  Ne4 {[%clk 0:02:58]} 9. Bxe7 {[%clk 0:02:53]}  Qxe7 {[%clk 0:02:59]} 10. O-O {[%clk 0:02:52]}  Nxc3 {[%clk 0:02:57]} 11. Rxc3 {[%clk 0:02:51]}  dxc4 {[%clk 0:02:58]} 12. Bxc4 {[%clk 0:02:51]}  e5 {[%clk 0:02:58]} 13. d5 {[%clk 0:02:51]}  Nb6 {[%clk 0:02:57]} 14. dxc6 {[%clk 0:02:48]}  bxc6 {[%clk 0:02:57]} 15. Bb3 {[%clk 0:02:47]}  Bb7 {[%clk 0:02:52]} 16. Qe2 {[%clk 0:02:43]}  O-O {[%clk 0:02:51]} 17. Rfc1 {[%clk 0:02:41]}  g6 {[%clk 0:02:49]} 18. h4 {[%clk 0:02:37]}  a5 {[%clk 0:02:44]} 19. a3 {[%clk 0:02:32]}  Rfd8 {[%clk 0:02:32]} 20. Ng5 {[%clk 0:02:30]}  Nd5 {[%clk 0:02:29]} 21. Rc5 {[%clk 0:02:23]}  f6 {[%clk 0:02:12]} 22. e4 {[%clk 0:02:19]}  fxg5 {[%clk 0:02:12]} 23. exd5 {[%clk 0:02:19]}  cxd5 {[%clk 0:02:11]} 24. Qc2 {[%clk 0:02:03]}  e4 {[%clk 0:02:03]} 25. hxg5 {[%clk 0:01:58]}  Qxg5 {[%clk 0:01:57]} 26. Rc7 {[%clk 0:01:57]}  Rac8 {[%clk 0:01:55]} 27. Qd1 {[%clk 0:01:48]}  Qf4 {[%clk 0:01:01]} 28. Rxc8 {[%clk 0:01:41]}  Bxc8 {[%clk 0:01:01]} 29. Bxd5+ {[%clk 0:01:36]}  Kf8 {[%clk 0:00:59]} 30. Rc5 {[%clk 0:01:22]}  e3 {[%clk 0:00:54]} 31. Qe1 {[%clk 0:00:49]}  exf2+ {[%clk 0:00:34]} 32. Qxf2 {[%clk 0:00:46]}  Qxf2+ {[%clk 0:00:33]} 33. Kxf2 {[%clk 0:00:46]}  a4 {[%clk 0:00:31]} 34. Ke3 {[%clk 0:00:44]}  Bf5 {[%clk 0:00:31]} 35. Kd4 {[%clk 0:00:43]}  g5 {[%clk 0:00:25]} 36. Ke5 {[%clk 0:00:40]}  Bd3 {[%clk 0:00:15]} 37. Rc7 {[%clk 0:00:37]}  g4 {[%clk 0:00:06]} 38. Kf6 {[%clk 0:00:31]}  Rb8 {[%clk 0:00:02]} 39. Rf7+ {[%clk 0:00:20]}  Ke8 {[%clk 0:00:02]} 40. Bc6+ {[%clk 0:00:19]}  Kd8 {[%clk 0:00:02]} 41. Rf8+ {[%clk 0:00:18]}  Kc7 {[%clk 0:00:02]} 42. Rxb8 {[%clk 0:00:18]}  Kxb8 {[%clk 0:00:03]} 43. Bxa4 {[%clk 0:00:18]}  h4 {[%clk 0:00:03]} 44. Bd7 {[%clk 0:00:15]}  h3 {[%clk 0:00:02]} 45. gxh3 {[%clk 0:00:15]}  g3 {[%clk 0:00:00]} 46. Bc6 {[%clk 0:00:15]} 1-0


[Site "https://www.chess.com"]

[Event "Titled Tuesday Blitz August 15 Late 2023"]
[White "Jakic, Ivan"]
[Black "Vaglio Munoz, Jaime"]
[WhiteFideId "14504901"]
[BlackFideId "6500145"]
[WhiteElo "2449"]
[BlackElo "2240"]
[Result "1-0"]
[Round "2"]
[TimeControl "180+1"]
[Date "2023.08.15"]
[WhiteClock "0:00:35"]
[BlackClock "0:00:00"]
[Board "149"]

1. e4 {[%clk 0:03:00]}  c5 {[%clk 0:02:59]} 2. Nf3 {[%clk 0:03:00]}  Qa5 {[%clk 0:02:58]} 3. Nc3 {[%clk 0:02:59]}  a6 {[%clk 0:02:57]} 4. g3 {[%clk 0:02:55]}  b5 {[%clk 0:02:57]} 5. Bg2 {[%clk 0:02:56]}  Bb7 {[%clk 0:02:57]} 6. O-O {[%clk 0:02:53]}  b4 {[%clk 0:02:57]} 7. Nd5 {[%clk 0:02:51]}  e6 {[%clk 0:02:57]} 8. Nf4 {[%clk 0:02:52]}  Bxe4 {[%clk 0:02:56]} 9. Re1 {[%clk 0:02:52]}  Nf6 {[%clk 0:02:55]} 10. d4 {[%clk 0:02:48]}  cxd4 {[%clk 0:02:53]} 11. Nxd4 {[%clk 0:02:43]}  Bxg2 {[%clk 0:02:52]} 12. Kxg2 {[%clk 0:02:43]}  Be7 {[%clk 0:02:31]} 13. Qf3 {[%clk 0:02:42]}  Ra7 {[%clk 0:02:28]} 14. Bd2 {[%clk 0:02:39]}  Qb6 {[%clk 0:02:16]} 15. Be3 {[%clk 0:02:37]}  Qb7 {[%clk 0:02:15]} 16. Nb3 {[%clk 0:02:29]}  Qxf3+ {[%clk 0:02:14]} 17. Kxf3 {[%clk 0:02:30]}  Rc7 {[%clk 0:02:10]} 18. Nd3 {[%clk 0:02:20]}  Nc6 {[%clk 0:01:57]} 19. Bf4 {[%clk 0:02:16]}  Rc8 {[%clk 0:01:55]} 20. c3 {[%clk 0:02:14]}  Nd5 {[%clk 0:01:54]} 21. c4 {[%clk 0:02:13]}  Nxf4 {[%clk 0:01:53]} 22. gxf4 {[%clk 0:02:12]}  O-O {[%clk 0:01:52]} 23. Rad1 {[%clk 0:02:10]}  Bf6 {[%clk 0:01:52]} 24. Ne5 {[%clk 0:02:10]}  Bxe5 {[%clk 0:01:17]} 25. fxe5 {[%clk 0:02:11]}  f6 {[%clk 0:01:16]} 26. exf6 {[%clk 0:01:56]}  Rxf6+ {[%clk 0:01:17]} 27. Kg3 {[%clk 0:01:50]}  Rcf8 {[%clk 0:01:16]} 28. Re2 {[%clk 0:01:50]}  Rg6+ {[%clk 0:01:12]} 29. Kh3 {[%clk 0:01:51]}  Rf3+ {[%clk 0:01:12]} 30. Kh4 {[%clk 0:01:51]}  Rf4+ {[%clk 0:01:11]} 31. Kh3 {[%clk 0:01:51]}  Rf5 {[%clk 0:01:10]} 32. Re4 {[%clk 0:01:42]}  Ne5 {[%clk 0:01:10]} 33. Red4 {[%clk 0:01:25]}  Nf3 {[%clk 0:01:06]} 34. Rg4 {[%clk 0:01:19]}  Rh5+ {[%clk 0:01:04]} 35. Kg3 {[%clk 0:01:19]}  Rf6 {[%clk 0:00:58]} 36. Rxd7 {[%clk 0:01:15]}  g6 {[%clk 0:00:57]} 37. Nd4 {[%clk 0:01:09]}  Ne5 {[%clk 0:00:55]} 38. Rd8+ {[%clk 0:01:05]}  Kg7 {[%clk 0:00:55]} 39. Re4 {[%clk 0:01:01]}  Rg5+ {[%clk 0:00:52]} 40. Kh3 {[%clk 0:01:00]}  Kh6 {[%clk 0:00:44]} 41. f4 {[%clk 0:00:58]}  Rh5+ {[%clk 0:00:43]} 42. Kg3 {[%clk 0:00:57]}  Nd3 {[%clk 0:00:41]} 43. Nxe6 {[%clk 0:00:52]}  g5 {[%clk 0:00:37]} 44. fxg5+ {[%clk 0:00:46]}  Kg6 {[%clk 0:00:36]} 45. gxf6 {[%clk 0:00:45]}  Nc5 {[%clk 0:00:30]} 46. Nxc5 {[%clk 0:00:44]}  Rxc5 {[%clk 0:00:29]} 47. Rd5 {[%clk 0:00:43]}  Rc8 {[%clk 0:00:28]} 48. f7 {[%clk 0:00:43]}  Kxf7 {[%clk 0:00:27]} 49. Rf5+ {[%clk 0:00:43]}  Kg6 {[%clk 0:00:27]} 50. Kf4 {[%clk 0:00:43]}  Rc6 {[%clk 0:00:22]} 51. h4 {[%clk 0:00:43]}  h5 {[%clk 0:00:21]} 52. b3 {[%clk 0:00:41]}  a5 {[%clk 0:00:20]} 53. Ree5 {[%clk 0:00:39]}  a4 {[%clk 0:00:20]} 54. Rg5+ {[%clk 0:00:39]}  Kf7 {[%clk 0:00:18]} 55. Ref5+ {[%clk 0:00:39]}  Ke8 {[%clk 0:00:18]} 56. Rxh5 {[%clk 0:00:39]}  axb3 {[%clk 0:00:18]} 57. axb3 {[%clk 0:00:40]}  Rd6 {[%clk 0:00:18]} 58. Re5+ {[%clk 0:00:40]}  Kf7 {[%clk 0:00:17]} 59. Rd5 {[%clk 0:00:39]}  Re6 {[%clk 0:00:16]} 60. Rhe5 {[%clk 0:00:39]}  Rh6 {[%clk 0:00:16]} 61. h5 {[%clk 0:00:39]}  Ra6 {[%clk 0:00:14]} 62. Rf5+ {[%clk 0:00:38]}  Ke7 {[%clk 0:00:13]} 63. Rde5+ {[%clk 0:00:38]}  Kd7 {[%clk 0:00:13]} 64. Kg5 {[%clk 0:00:39]}  Ra1 {[%clk 0:00:12]} 65. Kf6 {[%clk 0:00:37]}  Ra6+ {[%clk 0:00:09]} 66. Kg7 {[%clk 0:00:35]}  Ra7 {[%clk 0:00:00]} 67. Rf7+ {[%clk 0:00:35]} 1-0


[Site "https://www.chess.com"]

[Event "Titled Tuesday Blitz August 15 Late 2023"]
[White "Gurevich, Dmitry"]
[Black "Kohler, Aran"]
[WhiteFideId "2000407"]
[BlackFideId "1002856"]
[WhiteElo "2449"]
[BlackElo "2232"]
[Result "1-0"]
[Round "2"]
[TimeControl "180+1"]
[Date "2023.08.15"]
[WhiteClock "0:01:15"]
[BlackClock "0:01:11"]
[Board "150"]

1. d4 {[%clk 0:03:00]}  d5 {[%clk 0:02:59]} 2. c4 {[%clk 0:03:00]}  c6 {[%clk 0:02:59]} 3. e3 {[%clk 0:02:59]}  Nf6 {[%clk 0:03:00]} 4. Nf3 {[%clk 0:02:59]}  Bf5 {[%clk 0:02:59]} 5. Nc3 {[%clk 0:02:57]}  e6 {[%clk 0:02:59]} 6. Bd3 {[%clk 0:02:56]}  Bxd3 {[%clk 0:02:57]} 7. Qxd3 {[%clk 0:02:55]}  dxc4 {[%clk 0:02:58]} 8. Qxc4 {[%clk 0:02:55]}  Nbd7 {[%clk 0:02:58]} 9. O-O {[%clk 0:02:54]}  Bd6 {[%clk 0:02:59]} 10. e4 {[%clk 0:02:53]}  e5 {[%clk 0:02:57]} 11. Rd1 {[%clk 0:02:52]}  Qc7 {[%clk 0:02:28]} 12. h3 {[%clk 0:02:49]}  O-O {[%clk 0:02:27]} 13. Bg5 {[%clk 0:02:49]}  Nb6 {[%clk 0:02:15]} 14. Qb3 {[%clk 0:02:48]}  Nfd7 {[%clk 0:02:15]} 15. Rac1 {[%clk 0:02:45]}  Qb8 {[%clk 0:02:13]} 16. a4 {[%clk 0:02:41]}  exd4 {[%clk 0:02:05]} 17. Nxd4 {[%clk 0:02:40]}  Ne5 {[%clk 0:02:06]} 18. Nf5 {[%clk 0:02:32]}  Bc7 {[%clk 0:01:53]} 19. Ne2 {[%clk 0:02:16]}  Ng6 {[%clk 0:01:49]} 20. g3 {[%clk 0:01:58]}  Kh8 {[%clk 0:01:47]} 21. h4 {[%clk 0:01:57]}  f6 {[%clk 0:01:46]} 22. Be3 {[%clk 0:01:56]}  Ne5 {[%clk 0:01:45]} 23. Kg2 {[%clk 0:01:51]}  Qe8 {[%clk 0:01:43]} 24. f3 {[%clk 0:01:44]}  Rb8 {[%clk 0:01:38]} 25. Nf4 {[%clk 0:01:39]}  Rf7 {[%clk 0:01:29]} 26. Nd6 {[%clk 0:01:32]}  Bxd6 {[%clk 0:01:28]} 27. Rxd6 {[%clk 0:01:32]}  Nbd7 {[%clk 0:01:24]} 28. Rcd1 {[%clk 0:01:30]}  b6 {[%clk 0:01:22]} 29. Ne6 {[%clk 0:01:25]}  Nc5 {[%clk 0:01:18]} 30. Bxc5 {[%clk 0:01:17]}  bxc5 {[%clk 0:01:17]} 31. Qxb8 {[%clk 0:01:17]}  Qxb8 {[%clk 0:01:15]} 32. Rd8+ {[%clk 0:01:17]}  Rf8 {[%clk 0:01:11]} 33. Rxf8+ {[%clk 0:01:15]} 1-0


[Site "https://www.chess.com"]